bitfinex-derivatives/quotes_SOLF0:USTF0_20260117
["timestamp","ask_amount","ask_price","bid_price","bid_amount"]
[1768651181783,25.83794412,144.04,143.99,19.65577686]
[1768651181984,5.23828675,144.03,143.99,19.65577686]
[1768651182187,25.83794412,144.04,143.99,19.65577686]
[1768651182387,5.23819189,144.03,143.99,19.65577686]
[1768651182582,25.83794412,144.04,143.99,19.65577686]
[1768651182788,5.23816795,144.03,143.99,19.65577686]
[1768651182978,24.10872978,144.04,143.99,19.65577686]
[1768651183182,5.23808719,144.03,143.99,19.65577686]
[1768651183378,25.83794412,144.04,143.99,19.65577686]
[1768651183582,5.23806596,144.03,143.99,19.65577686]
[1768651183789,25.83794412,144.04,143.99,19.65577686]
[1768651184090,5.23806596,144.03,143.99,19.65577686]
[1768651184389,25.83794412,144.04,143.99,19.65577686]
[1768651184587,5.23797978,144.03,143.99,19.65577686]
[1768651184887,25.83794412,144.04,143.99,19.65577686]
[1768651185086,5.23797978,144.03,143.99,19.65577686]
[1768651185286,25.83794412,144.04,143.99,19.65577686]
[1768651185488,5.23792305,144.03,143.99,19.65577686]
[1768651185686,25.83794412,144.04,143.99,19.65577686]
[1768651185990,5.23792305,144.03,143.99,19.65577686]
[1768651186187,25.83794412,144.04,143.99,19.65577686]
[1768651186386,5.23787758,144.03,143.99,19.65577686]
[1768651186586,25.83794412,144.04,143.99,19.65577686]
[1768651186790,5.23787706,144.03,143.99,19.65577686]
[1768651187086,25.83794412,144.04,143.99,19.65577686]
[1768651187286,5.23784836,144.03,143.99,19.65577686]
[1768651187486,25.83794412,144.04,143.99,19.65577686]
[1768651187686,5.23784836,144.03,143.99,19.65577686]
[1768651187887,25.83794412,144.04,143.99,19.65577686]
[1768651188088,5.23784836,144.03,143.99,19.65577686]
[1768651188291,25.83794412,144.04,143.99,19.65577686]
[1768651188584,5.23783407,144.03,143.99,19.65577686]
[1768651188890,25.83794412,144.04,143.99,19.65577686]
[1768651189090,5.23783407,144.03,143.99,19.65577686]
[1768651189292,25.83794412,144.04,143.99,19.65577686]
[1768651189592,5.23783404,144.03,143.99,19.65577686]
[1768651189789,25.83794412,144.04,143.99,19.65577686]
[1768651190092,5.23783404,144.03,143.99,19.65577686]
[1768651190290,25.83794412,144.04,143.99,19.65577686]
[1768651190486,5.23784828,144.03,143.99,19.65577686]
[1768651190691,25.83794412,144.04,143.99,19.65577686]
[1768651190894,5.23784828,144.03,143.99,19.65577686]
[1768651191093,25.83794412,144.04,143.99,19.65577686]
[1768651191289,5.23787688,144.03,143.99,19.65577686]
[1768651191490,25.83794412,144.04,143.99,19.65577686]
[1768651191689,5.23787688,144.03,143.99,19.65577686]
[1768651191893,25.83794412,144.04,143.99,19.65577686]
[1768651192095,5.23787688,144.03,143.99,19.65577686]
[1768651192284,25.83794412,144.04,143.99,19.65577686]
[1768651192489,5.23789836,144.03,143.99,19.65577686]
[1768651192694,25.83794412,144.04,143.99,19.65577686]
[1768651194293,24.10872978,144.04,143.99,19.65577686]
[1768651196287,24.10872978,144.04,143.99,25.90807686]
[1768651200195,1.72921434,144.03,143.97,25.27773924]
[1768651201002,1.72921434,144.03,143.98,19.00474477]
[1768651202000,25.83794412,144.04,143.98,19.00474477]
[1768651202398,5.23552992,144.03,143.98,19.00474477]
[1768651202593,25.83794412,144.04,143.98,19.00474477]
[1768651202794,5.23529213,144.03,143.98,19.00474477]
[1768651202994,25.83794412,144.04,143.98,19.00474477]
[1768651203195,5.23521453,144.03,143.98,19.00474477]
[1768651203396,25.83794412,144.04,143.98,19.00474477]
[1768651203597,5.23551592,144.03,143.98,19.00474477]
[1768651203796,25.83794412,144.04,143.98,19.00474477]
[1768651203997,5.23551592,144.03,143.98,19.00474477]
[1768651204206,25.83794412,144.04,143.98,19.00474477]
[1768651204501,30.33471731,144.03,143.98,19.00474477]
[1768651204702,25.09901091,144.03,143.98,19.00474477]
[1768651212812,5.23599172,144.02,143.98,19.00474477]
[1768651213012,25.09901091,144.03,143.98,19.00474477]
[1768651213311,5.23611629,144.02,143.98,19.00474477]
[1768651213512,25.09901091,144.03,143.98,19.00474477]
[1768651213711,5.23588778,144.02,143.98,19.00474477]
[1768651213915,25.09901091,144.03,143.98,19.00474477]
[1768651214112,5.23588654,144.02,143.98,19.00474477]
[1768651214305,25.09901091,144.03,143.98,19.00474477]
[1768651214506,5.23578781,144.02,143.98,19.00474477]
[1768651214706,25.09901091,144.03,143.98,19.00474477]
[1768651214907,5.23578781,144.02,143.98,19.00474477]
[1768651215112,25.09901091,144.03,143.98,19.00474477]
[1768651215413,30.33497374,144.02,143.96,18.733085]
[1768651215614,25.09901091,144.02,143.96,18.733085]
[1768651220625,31.35041091,144.02,143.96,18.733085]
[1768651220826,26.82822525,144.0,143.94,18.65233749]
[1768651224728,23.96048409,143.99,143.94,18.65233749]
[1768651227530,23.96048409,143.99,143.92,18.51380745]
[1768651230331,23.96048409,143.98,143.92,18.51380745]
[1768651231137,23.96048409,143.97,143.92,18.51380745]
[1768651231831,30.21398409,143.97,143.92,18.51380745]
[1768651232837,30.21398409,143.97,143.9,404.50488601]
[1768651233440,31.94493513,143.97,143.9,404.50488601]
[1768651233738,31.94493513,143.97,143.9,279.08978415]
[1768651233739,24.24283144,143.96,143.9,279.08978415]
[1768651237042,24.24283144,143.95,143.9,18.44978415]
[1768651237230,25.97378248,143.95,143.88,18.39877542]
[1768651237635,24.24283144,143.97,143.88,18.39877542]
[1768651237835,25.97378248,143.97,143.88,18.39877542]
[1768651238444,30.49683144,143.96,143.89,18.3741932]
[1768651249544,25.97378248,143.95,143.89,18.3741932]
[1768651256150,25.97378248,143.95,143.88,18.17271726]
[1768651256151,23.75895522,143.94,143.88,18.17271726]
[1768651257146,25.48990626,143.93,143.87,260.68]
[1768651258755,31.74520626,143.93,143.87,260.68]
[1768651259157,23.75895522,143.92,143.87,260.68]
[1768651260353,23.75895522,143.92,143.86,18.16293015]
[1768651262258,25.48990626,143.91,143.85,6.2583]
[1768651263067,25.48990626,143.91,143.85,24.36496838]
[1768651264157,23.75895522,143.91,143.85,24.36496838]
[1768651264358,25.48990626,143.91,143.85,24.36496838]
[1768651265160,23.75895522,143.91,143.85,24.36496838]
[1768651270863,23.75895522,143.91,143.85,18.10666838]
[1768651273769,30.01515522,143.91,143.85,18.10666838]
[1768651281781,6.2553,143.93,143.86,17.95010564]
[1768651281981,30.92582463,143.93,143.86,17.95010564]
[1768651288380,24.67052463,143.93,143.87,19.631533]
[1768651289882,24.67052463,143.93,143.88,17.89380382]
[1768651310205,30.90379061,143.95,143.88,17.89380382]
[1768651310408,30.90379061,143.95,143.88,24.15110382]
[1768651310608,22.91797045,143.94,143.88,24.15110382]
[1768651321320,24.45778146,143.96,143.9,6.2563]
[1768651321612,24.45778146,143.96,143.91,17.70329361]
[1768651339732,24.45778146,143.96,143.91,23.95909361]
[1768651340133,1.73132016,143.98,143.91,23.95909361]
[1768651342143,23.44756039,143.97,143.92,6.2555]
[1768651348133,23.44756039,143.97,143.91,17.70329361]
[1768651349846,23.44756039,143.97,143.91,23.95929361]
[1768651355346,25.17853253,143.97,143.91,23.95929361]
[1768651370564,25.17853253,143.97,143.88,23.1085137]
[1768651370860,1.73097214,143.93,143.88,23.1085137]
[1768651377763,27.03948325,143.96,143.89,24.87551341]
[1768651377969,25.30851111,143.96,143.89,24.87551341]
[1768651378159,31.56191111,143.98,143.91,24.87551341]
[1768651378356,5.24574602,143.97,143.91,24.87551341]
[1768651378563,31.56191111,143.98,143.91,24.87551341]
[1768651378764,5.24567849,143.97,143.91,24.87551341]
[1768651378965,31.56191111,143.98,143.91,24.87551341]
[1768651379252,5.24567973,143.97,143.91,24.87551341]
[1768651379456,31.56191111,143.98,143.91,24.87551341]
[1768651379653,5.24561127,143.97,143.91,24.87551341]
[1768651379853,31.56191111,143.98,143.91,31.13151341]
[1768651380065,5.24564357,143.97,143.91,31.13151341]
[1768651380265,31.56191111,143.98,143.91,31.13151341]
[1768651380462,5.24546589,143.97,143.91,31.13151341]
[1768651380663,5.24549943,143.96,143.91,31.13151341]
[1768651380861,31.56191111,143.98,143.91,31.13151341]
[1768651381060,5.24549819,143.97,143.91,31.13151341]
[1768651381259,5.24549819,143.96,143.91,31.13151341]
[1768651381465,31.56191111,143.98,143.91,31.13151341]
[1768651381659,5.24542639,143.97,143.91,31.13151341]
[1768651381967,31.56191111,143.98,143.91,31.13151341]
[1768651382168,5.24494813,143.97,143.91,31.13151341]
[1768651382368,31.56191111,143.98,143.91,31.13151341]
[1768651382566,5.24499189,143.97,143.91,31.13151341]
[1768651382764,31.56191111,143.98,143.91,31.13151341]
[1768651382963,5.24499189,143.97,143.91,31.13151341]
[1768651383163,31.56191111,143.98,143.91,31.13151341]
[1768651383367,5.24487588,143.97,143.91,31.13151341]
[1768651383565,31.56191111,143.98,143.91,31.13151341]
[1768651383766,5.24502639,143.97,143.92,24.87551341]
[1768651383965,31.56191111,143.98,143.92,24.87551341]
[1768651384162,5.24499409,143.97,143.92,24.87551341]
[1768651384364,31.56191111,143.98,143.92,24.87551341]
[1768651384562,5.24506181,143.97,143.92,24.87551341]
[1768651384772,31.56191111,143.98,143.92,24.87551341]
[1768651384966,5.24506181,143.97,143.92,24.87551341]
[1768651385162,31.56191111,143.98,143.92,24.87551341]
[1768651385368,5.24495851,143.97,143.92,24.87551341]
[1768651385667,31.56191111,143.98,143.92,24.87551341]
[1768651385865,5.24510957,143.97,143.92,24.87551341]
[1768651386072,31.56191111,143.98,143.92,24.87551341]
[1768651386273,5.24510803,143.97,143.92,24.87551341]
[1768651386475,31.56191111,143.98,143.92,24.87551341]
[1768651386778,5.24525651,143.97,143.92,24.87551341]
[1768651387076,31.56191111,143.98,143.92,24.87551341]
[1768651387263,5.24516264,143.97,143.92,24.87551341]
[1768651387466,31.56191111,143.98,143.92,24.87551341]
[1768651387768,5.24530997,143.97,143.92,24.87551341]
[1768651387967,31.56191111,143.98,143.92,24.87551341]
[1768651388172,5.24530997,143.97,143.92,24.87551341]
[1768651388372,31.56191111,143.98,143.92,24.87551341]
[1768651388569,5.24546725,143.97,143.92,24.87551341]
[1768651388767,31.56191111,143.98,143.92,24.87551341]
[1768651388972,5.24546725,143.97,143.92,24.87551341]
[1768651389173,31.56191111,143.98,143.92,24.87551341]
[1768651389466,5.24549056,143.97,143.92,24.87551341]
[1768651389668,31.56191111,143.98,143.92,24.87551341]
[1768651389870,5.24563179,143.97,143.92,24.87551341]
[1768651390171,31.56191111,143.98,143.92,24.87551341]
[1768651390370,5.24555432,143.97,143.92,24.87551341]
[1768651390572,31.56191111,143.98,143.92,24.87551341]
[1768651390873,5.24569411,143.97,143.92,24.87551341]
[1768651391072,31.56191111,143.98,143.92,24.87551341]
[1768651391274,5.24562,143.97,143.92,24.87551341]
[1768651391472,31.56191111,143.98,143.92,24.87551341]
[1768651391774,5.24575827,143.97,143.92,24.87551341]
[1768651391968,31.56191111,143.98,143.92,24.87551341]
[1768651392168,5.24575827,143.97,143.92,24.87551341]
[1768651392467,31.56191111,143.98,143.92,24.87551341]
[1768651392667,5.24582432,143.97,143.92,24.87551341]
[1768651392864,31.56191111,143.98,143.92,24.87551341]
[1768651393068,6.97682875,143.97,143.92,24.87551341]
[1768651393263,1.73097214,143.97,143.92,24.87551341]
[1768651393671,27.03948325,143.95,143.89,6.2566]
[1768651393872,1.73097214,143.93,143.88,24.87551341]
[1768651394069,27.03948325,143.93,143.88,24.87551341]
[1768651402181,27.03948325,143.93,143.87,6.2575]
[1768651402980,27.03948325,143.93,143.87,31.88377869]
[1768651408784,27.03948325,143.93,143.87,25.62627869]
[1768651417290,27.04066509,143.93,143.87,25.62627869]
[1768651420393,25.34591088,143.92,143.87,25.62627869]
[1768651424298,25.34591088,143.94,143.87,25.62627869]
[1768651425799,25.34591088,143.94,143.87,31.88387869]
[1768651427296,5.24378594,143.93,143.87,31.88387869]
[1768651427495,25.34591088,143.94,143.87,31.88387869]
[1768651427697,5.24369135,143.93,143.87,31.88387869]
[1768651427895,25.34591088,143.94,143.87,31.88387869]
[1768651428100,5.24369135,143.93,143.87,31.88387869]
[1768651428304,25.34591088,143.94,143.87,31.88387869]
[1768651428499,5.24423484,143.93,143.87,31.88387869]
[1768651428700,25.34591088,143.94,143.87,31.88387869]
[1768651428999,5.24423484,143.93,143.87,31.88387869]
[1768651429201,25.34591088,143.94,143.87,31.88387869]
[1768651429401,5.24423484,143.93,143.87,31.88387869]
[1768651429602,25.34591088,143.94,143.87,31.88387869]
[1768651429803,5.24481979,143.93,143.87,31.88387869]
[1768651429994,25.34591088,143.94,143.87,31.88387869]
[1768651430195,5.24483017,143.93,143.87,31.88387869]
[1768651430395,25.34591088,143.94,143.87,31.88387869]
[1768651430701,5.24550984,143.93,143.87,31.88387869]
[1768651430902,25.34591088,143.94,143.87,31.88387869]
[1768651431101,5.24550984,143.93,143.87,31.88387869]
[1768651431302,25.34591088,143.94,143.87,31.88387869]
[1768651431501,5.24618058,143.93,143.87,31.88387869]
[1768651431703,25.34591088,143.94,143.87,31.88387869]
[1768651431892,5.24620012,143.93,143.87,31.88387869]
[1768651432097,25.34591088,143.94,143.87,31.88387869]
[1768651432298,5.24620012,143.93,143.87,31.88387869]
[1768651432495,25.34591088,143.94,143.87,31.88387869]
[1768651432801,5.24709385,143.93,143.87,31.88387869]
[1768651433001,25.34591088,143.94,143.87,31.88387869]
[1768651433201,5.24704368,143.93,143.87,31.88387869]
[1768651433403,25.34591088,143.94,143.87,31.88387869]
[1768651433600,5.24811817,143.93,143.87,31.88387869]
[1768651433799,25.34591088,143.94,143.87,31.88387869]
[1768651434004,5.24811817,143.93,143.87,31.88387869]
[1768651434204,25.34591088,143.94,143.87,31.88387869]
[1768651434406,5.24811817,143.93,143.87,31.88387869]
[1768651434601,25.34591088,143.94,143.87,31.88387869]
[1768651434803,5.24917143,143.93,143.87,31.88387869]
[1768651435105,25.34591088,143.94,143.87,31.88387869]
[1768651435304,5.24917143,143.93,143.87,31.88387869]
[1768651435505,25.34591088,143.94,143.87,31.88387869]
[1768651435705,5.2505814,143.93,143.87,31.88387869]
[1768651435908,25.34591088,143.94,143.87,31.88387869]
[1768651436104,30.61757632,143.93,143.87,31.88387869]
[1768651436295,25.36699492,143.93,143.87,31.88387869]
[1768651436500,5.25227944,143.92,143.87,31.88387869]
[1768651436697,25.36699492,143.93,143.87,31.88387869]
[1768651436896,5.25228178,143.92,143.87,31.88387869]
[1768651437097,25.36699492,143.93,143.87,31.88387869]
[1768651437404,5.25228178,143.92,143.87,31.88387869]
[1768651437605,25.36699492,143.93,143.87,31.88387869]
[1768651437806,5.2545091,143.92,143.87,31.88387869]
[1768651438006,25.36699492,143.93,143.87,31.88387869]
[1768651438207,5.25513385,143.92,143.87,31.88387869]
[1768651438411,25.36699492,143.93,143.87,31.88387869]
[1768651438608,5.25845981,143.92,143.87,31.88387869]
[1768651438809,25.36699492,143.93,143.87,31.88387869]
[1768651439109,5.25845981,143.92,143.87,31.88387869]
[1768651439308,25.36699492,143.93,143.87,31.88387869]
[1768651439507,5.25866116,143.92,143.87,31.88387869]
[1768651439708,25.36699492,143.93,143.87,31.88387869]
[1768651439908,5.25866116,143.92,143.87,31.88387869]
[1768651440209,25.36699492,143.93,143.87,31.88387869]
[1768651440407,5.25866116,143.92,143.87,31.88387869]
[1768651440604,25.36699492,143.93,143.87,31.88387869]
[1768651440810,5.25866912,143.92,143.87,31.88387869]
[1768651441010,25.36699492,143.93,143.87,31.88387869]
[1768651441209,5.25866912,143.92,143.87,31.88387869]
[1768651441412,25.36699492,143.93,143.87,31.88387869]
[1768651441610,5.2587916,143.92,143.87,31.88387869]
[1768651441812,25.36699492,143.95,143.89,24.8356244]
[1768651442012,5.25879268,143.94,143.89,24.8356244]
[1768651442212,5.25879268,143.93,143.89,24.8356244]
[1768651442413,25.36699492,143.95,143.89,24.8356244]
[1768651442613,5.25847842,143.94,143.89,24.8356244]
[1768651442814,5.25847842,143.93,143.9,24.8356244]
[1768651443013,25.36699492,143.95,143.9,24.8356244]
[1768651443212,5.25847842,143.94,143.9,24.8356244]
[1768651443412,5.25847842,143.93,143.9,24.8356244]
[1768651443616,25.36699492,143.95,143.9,24.8356244]
[1768651443813,5.25819497,143.94,143.9,24.8356244]
[1768651444020,25.36699492,143.97,143.91,24.8356244]
[1768651445018,25.36699492,144.0,143.92,24.8356244]
[1768651445623,25.36699492,144.0,143.92,31.0910244]
[1768651445829,25.36699492,144.0,143.93,24.8356244]
[1768651446416,25.36699492,144.0,143.93,31.0906244]
[1768651452125,25.36699492,144.0,143.93,24.8356244]
[1768651452321,25.36699492,144.0,143.91,6.2558]
[1768651452322,25.36699492,144.0,143.91,24.8356244]
[1768651453230,25.36699492,143.98,143.91,24.8356244]
[1768651461336,31.62009492,143.98,143.91,24.8356244]
[1768651469145,31.66947992,143.97,143.91,24.8356244]
[1768651469347,26.46866229,143.97,143.91,24.8356244]
[1768651476350,5.20460315,143.96,143.91,24.8356244]
[1768651476548,26.46866229,143.97,143.91,24.8356244]
[1768651476749,5.20460315,143.96,143.91,24.8356244]
[1768651476951,26.46866229,143.97,143.91,24.8356244]
[1768651477248,5.20460315,143.96,143.91,24.8356244]
[1768651477445,26.46866229,143.97,143.91,24.8356244]
[1768651477646,5.20522113,143.96,143.91,24.8356244]
[1768651477846,26.46866229,143.97,143.91,24.8356244]
[1768651478036,5.20522113,143.96,143.91,24.8356244]
[1768651478238,26.46866229,143.97,143.91,24.8356244]
[1768651478451,5.20588944,143.96,143.91,24.8356244]
[1768651478649,26.46866229,143.97,143.91,24.8356244]
[1768651478849,5.20588944,143.96,143.91,24.8356244]
[1768651479053,26.46866229,143.97,143.91,24.8356244]
[1768651479350,5.20588944,143.96,143.91,24.8356244]
[1768651479547,26.46866229,143.97,143.91,24.8356244]
[1768651479748,5.20661381,143.96,143.91,24.8356244]
[1768651479949,26.46866229,143.97,143.91,24.8356244]
[1768651480151,5.20661381,143.96,143.91,24.8356244]
[1768651480352,26.46866229,143.97,143.91,24.8356244]
[1768651480553,5.20740153,143.96,143.91,24.8356244]
[1768651480754,26.46866229,143.97,143.91,24.8356244]
[1768651480953,5.20740153,143.96,143.91,24.8356244]
[1768651481150,26.46866229,143.97,143.91,24.8356244]
[1768651481347,5.20740153,143.96,143.91,24.8356244]
[1768651481549,26.46866229,143.97,143.91,24.8356244]
[1768651481749,5.20827783,143.96,143.91,24.8356244]
[1768651481949,26.46866229,143.97,143.91,24.8356244]
[1768651482248,5.20827783,143.96,143.91,24.8356244]
[1768651482448,26.46866229,143.97,143.91,24.8356244]
[1768651482648,5.20923917,143.96,143.91,24.8356244]
[1768651482953,26.46866229,143.97,143.91,24.8356244]
[1768651483154,5.20923917,143.96,143.91,24.8356244]
[1768651483356,26.46866229,143.97,143.91,24.8356244]
[1768651483549,5.21008696,143.96,143.91,24.8356244]
[1768651483852,26.46866229,143.97,143.91,24.8356244]
[1768651484053,5.21008696,143.96,143.91,24.8356244]
[1768651484249,26.46866229,143.97,143.91,24.8356244]
[1768651484449,5.21132486,143.96,143.91,24.8356244]
[1768651484650,26.46866229,143.97,143.91,24.8356244]
[1768651484851,5.21132486,143.96,143.91,24.8356244]
[1768651485051,26.46866229,143.97,143.91,24.8356244]
[1768651485355,5.21132486,143.96,143.91,24.8356244]
[1768651485560,26.46866229,143.97,143.91,24.8356244]
[1768651485758,5.2114684,143.96,143.91,24.8356244]
[1768651486062,26.46866229,143.97,143.91,24.8356244]
[1768651486251,5.2114684,143.96,143.91,24.8356244]
[1768651486448,26.46866229,143.97,143.91,24.8356244]
[1768651486652,5.21288973,143.96,143.91,24.8356244]
[1768651486852,26.46866229,143.97,143.91,24.8356244]
[1768651487053,5.21288973,143.96,143.91,24.8356244]
[1768651487253,26.46866229,143.97,143.91,24.8356244]
[1768651487459,5.21349981,143.96,143.91,24.8356244]
[1768651487754,26.46866229,143.97,143.91,24.8356244]
[1768651487954,5.21349981,143.96,143.91,24.8356244]
[1768651488157,26.46866229,143.97,143.91,24.8356244]
[1768651488357,5.21349981,143.96,143.91,24.8356244]
[1768651488658,26.46866229,143.97,143.91,24.8356244]
[1768651488858,5.21417397,143.96,143.91,24.8356244]
[1768651489053,26.46866229,143.97,143.91,24.8356244]
[1768651489253,5.21417397,143.96,143.91,24.8356244]
[1768651489553,26.46866229,143.97,143.91,24.8356244]
[1768651489753,5.21434464,143.96,143.91,24.8356244]
[1768651489954,26.46866229,143.97,143.91,24.8356244]
[1768651490259,30.45018646,143.96,143.89,24.02475478]
[1768651490452,30.45018646,143.95,143.89,24.02475478]
[1768651490757,5.21434464,143.94,143.89,24.02475478]
[1768651491057,5.21434464,143.93,143.89,24.02475478]
[1768651491261,25.23584182,143.95,143.89,24.02475478]
[1768651491457,5.21347142,143.94,143.89,24.02475478]
[1768651491757,5.21347142,143.93,143.89,24.02475478]
[1768651492058,25.23584182,143.95,143.89,24.02475478]
[1768651492257,5.21343169,143.94,143.89,24.02475478]
[1768651492457,5.21343169,143.93,143.89,24.02475478]
[1768651492659,31.49024182,143.95,143.89,24.02475478]
[1768651492959,5.21297,143.94,143.89,24.02475478]
[1768651493159,5.21297,143.93,143.89,24.02475478]
[1768651493360,31.49024182,143.95,143.89,24.02475478]
[1768651493565,5.21289891,143.94,143.89,24.02475478]
[1768651493764,5.21289891,143.93,143.89,24.02475478]
[1768651494063,31.49024182,143.95,143.89,24.02475478]
[1768651494267,25.60128099,143.93,143.87,26.30803059]
[1768651497561,31.85658099,143.93,143.87,26.30803059]
[1768651498062,5.22057732,143.92,143.87,26.30803059]
[1768651498263,31.85658099,143.93,143.87,26.30803059]
[1768651500675,37.07578454,143.92,143.87,26.30803059]
[1768651500969,5.21870355,143.91,143.87,26.30803059]
[1768651501169,31.85708099,143.92,143.87,26.30803059]
[1768651501369,5.21634232,143.91,143.87,26.30803059]
[1768651501570,31.85708099,143.92,143.87,26.30803059]
[1768651501766,5.21623897,143.91,143.87,26.30803059]
[1768651501965,31.85708099,143.92,143.87,26.30803059]
[1768651502271,5.21629322,143.91,143.87,26.30803059]
[1768651502470,31.85708099,143.92,143.87,26.30803059]
[1768651502670,5.21478559,143.91,143.87,26.30803059]
[1768651502870,31.85708099,143.92,143.87,26.30803059]
[1768651503072,5.21480229,143.91,143.87,26.30803059]
[1768651503371,31.85708099,143.92,143.87,26.30803059]
[1768651505971,31.85708099,143.92,143.85,287.28803059]
[1768651507575,31.85708099,143.92,143.86,26.30803059]
[1768651508671,6.2562,143.91,143.86,26.30803059]
[1768651508877,31.85748099,143.91,143.85,260.98]
[1768651509281,31.85748099,143.91,143.85,287.28803059]
[1768651512979,31.85748099,143.91,143.86,26.30803059]
[1768651519280,6.2562,143.91,143.86,26.30803059]
[1768651522089,6.2555,143.93,143.86,26.30803059]
[1768651524192,31.92847436,143.95,143.86,26.30803059]
[1768651524388,25.67387436,143.97,143.86,26.30803059]
[1768651524586,5.2089978,143.96,143.86,26.30803059]
[1768651524784,5.2089978,143.95,143.86,26.30803059]
[1768651524979,25.67387436,143.97,143.86,26.30803059]
[1768651525181,5.20911741,143.96,143.86,26.30803059]
[1768651525385,5.20911741,143.95,143.86,26.30803059]
[1768651525590,25.67387436,143.97,143.86,26.30803059]
[1768651525791,5.20945189,143.96,143.88,6.2572]
[1768651525993,31.92757436,143.97,143.89,25.26951934]
[1768651526193,5.20945065,143.96,143.89,25.26951934]
[1768651526395,31.92757436,143.97,143.89,25.26951934]
[1768651526588,5.20972869,143.96,143.89,25.26951934]
[1768651526789,31.92757436,143.97,143.89,25.26951934]
[1768651526993,5.20972869,143.96,143.89,25.26951934]
[1768651527194,31.92757436,143.97,143.89,25.26951934]
[1768651527394,5.21008235,143.96,143.89,25.26951934]
[1768651527592,31.92757436,143.97,143.89,25.26951934]
[1768651527794,5.21001208,143.96,143.89,25.26951934]
[1768651527993,31.92757436,143.97,143.89,25.26951934]
[1768651528190,5.20770744,143.96,143.89,25.26951934]
[1768651528391,31.92757436,143.97,143.89,25.26951934]
[1768651528591,5.20809199,143.96,143.89,25.26951934]
[1768651528791,31.92757436,143.97,143.89,25.26951934]
[1768651528991,5.20809199,143.96,143.89,25.26951934]
[1768651529292,31.92757436,143.97,143.89,25.26951934]
[1768651529491,5.20859216,143.96,143.89,25.26951934]
[1768651529691,31.92757436,143.97,143.89,25.26951934]
[1768651529893,5.20859216,143.96,143.89,25.26951934]
[1768651530095,31.92757436,143.97,143.89,25.26951934]
[1768651530296,5.20859216,143.96,143.89,25.26951934]
[1768651530497,31.92757436,143.97,143.89,25.26951934]
[1768651530697,5.20910893,143.96,143.89,25.26951934]
[1768651530898,31.92757436,143.97,143.89,25.26951934]
[1768651531097,5.20910893,143.96,143.89,25.26951934]
[1768651531297,31.92757436,143.97,143.89,25.26951934]
[1768651531498,5.20964352,143.96,143.89,25.26951934]
[1768651531705,31.92757436,143.97,143.89,25.26951934]
[1768651531892,5.20964352,143.96,143.89,25.26951934]
[1768651532198,31.92757436,143.97,143.89,25.26951934]
[1768651532400,5.21038809,143.96,143.89,25.26951934]
[1768651532697,31.92757436,143.97,143.89,25.26951934]
[1768651532898,5.21019617,143.96,143.89,25.26951934]
[1768651533098,31.92757436,143.97,143.89,25.26951934]
[1768651533398,5.21019617,143.96,143.89,25.26951934]
[1768651533598,31.92757436,143.97,143.89,25.26951934]
[1768651533798,5.21076955,143.96,143.89,25.26951934]
[1768651533994,5.21076955,143.96,143.88,6.2572]
[1768651533995,33.01819925,143.99,143.91,24.97401851]
[1768651534304,26.76549925,144.01,143.91,24.97401851]
[1768651534487,5.20938964,144.0,143.91,24.97401851]
[1768651534690,5.20938964,143.99,143.91,24.97401851]
[1768651534890,26.76549925,144.0,143.92,24.97401851]
[1768651535193,31.97489304,143.99,143.88,24.97401851]
[1768651535400,26.76549925,143.97,143.88,24.97401851]
[1768651536794,26.76549925,143.97,143.9,24.97401851]
[1768651538700,26.76549925,144.01,143.92,6.2554]
[1768651538898,26.76549925,144.01,143.93,24.97401851]
[1768651540700,26.76549925,144.01,143.94,24.97401851]
[1768651541606,26.76549925,144.03,143.94,24.97401851]
[1768651541800,26.76549925,144.03,143.95,24.97401851]
[1768651543898,26.76549925,144.03,143.97,24.97401851]
[1768651557518,26.76549925,144.03,143.95,25.51693852]
[1768651558921,33.01649925,144.03,143.95,25.51693852]
[1768651568033,24.79705288,144.01,143.93,25.51693852]
[1768651568535,24.79705288,143.99,143.93,25.51693852]
[1768651573132,24.79705288,143.98,143.93,25.51693852]
[1768651573336,24.79705288,143.98,143.91,25.51693852]
[1768651574832,31.05015288,143.98,143.91,25.51693852]
[1768651579134,31.05015288,143.98,143.91,31.77293852]
[1768651579728,118.0931,144.04,143.93,25.51693852]
[1768651579729,24.79705288,144.0,143.93,25.51693852]
[1768651580936,24.79705288,144.0,143.93,31.77173852]
[1768651581831,24.79705288,144.0,143.95,26.08797076]
[1768651585239,25.69992029,144.02,143.95,26.08797076]
[1768651585536,5.21386874,144.01,143.95,26.08797076]
[1768651585736,25.69992029,144.02,143.95,26.08797076]
[1768651585926,5.21386874,144.01,143.95,26.08797076]
[1768651586130,25.69992029,144.02,143.95,26.08797076]
[1768651586339,5.21411133,144.01,143.95,26.08797076]
[1768651586539,25.69992029,144.02,143.95,26.08797076]
[1768651586734,5.21386457,144.01,143.95,26.08797076]
[1768651586940,31.95132029,144.02,143.95,26.08797076]
[1768651587141,5.21386457,144.01,143.95,26.08797076]
[1768651587344,31.95132029,144.02,143.95,26.08797076]
[1768651587538,25.69992029,144.02,143.95,26.08797076]
[1768651598351,5.21728206,144.01,143.95,26.08797076]
[1768651598552,25.69992029,144.02,143.95,26.08797076]
[1768651598846,5.21728206,144.01,143.95,26.08797076]
[1768651599051,25.69992029,144.02,143.95,26.08797076]